bitfinex-derivatives/quotes_SOLF0:USTF0_20240902
["timestamp","ask_amount","ask_price","bid_price","bid_amount"]
[1725277289342,0.05615388,131.91,131.89,3.7906]
[1725277290247,0.05615388,131.91,131.9,3.7905]
[1725277291141,0.05615388,131.91,131.88,0.04964366]
[1725277291354,23.28,131.89,131.88,0.04964366]
[1725277292043,9.31,131.89,131.88,0.04964366]
[1725277294951,13.1008,131.89,131.88,0.04964366]
[1725277296150,3.7912,131.88,131.79,89.6595989]
[1725277296354,3.7912,131.88,131.8,9.31]
[1725277296555,9.31,131.87,131.8,9.31]
[1725277297250,9.31,131.88,131.8,9.31]
[1725277297456,0.05475641,131.85,131.8,9.31]
[1725277298457,0.05475641,131.85,131.84,3.7922]
[1725277300149,9.31,131.9,131.88,3.7909]
[1725277300762,9.31,131.92,131.86,3.7633634]
[1725277300956,9.31,131.92,131.85,9.31]
[1725277301166,9.31,131.92,131.87,0.05222757]
[1725277301167,0.05292933,131.9,131.87,0.05222757]
[1725277301352,0.05292933,131.9,131.87,3.76451741]
[1725277301554,0.05292933,131.9,131.87,0.05222757]
[1725277302256,0.05292933,131.9,131.89,3.7908]
[1725277303562,13.19954335,131.9,131.87,0.05222757]
[1725277303860,9.31,131.88,131.87,0.05222757]
[1725277305952,23.29,131.88,131.87,0.05222757]
[1725277308764,23.29,131.88,131.86,3.7915]
[1725277309164,23.29,131.88,131.83,3.82515732]
[1725277309165,27.0811,131.88,131.83,3.82515732]
[1725277309466,27.0811,131.88,131.8,1.38]
[1725277309857,0.05517387,131.85,131.84,3.7922]
[1725277324482,0.05517387,131.85,131.83,3.7925]
[1725277325583,23.34517387,131.85,131.82,3.7927]
[1725277325983,9.32,131.83,131.82,3.7927]
[1725277327184,9.32,131.83,131.79,82.16616669]
[1725277327391,9.32,131.81,131.75,3.85787293]
[1725277327588,9.37763719,131.79,131.73,12.0883]
[1725277327788,9.37763719,131.79,131.76,3.7944]
[1725277328290,9.32,131.77,131.73,3.7952]
[1725277328490,9.32,131.77,131.7,1.3709]
[1725277328684,0.05614616,131.76,131.7,5.07787038]
[1725277328984,0.05614616,131.76,131.74,3.795]
[1725277329793,0.05614616,131.76,131.75,3.7948]
[1725277331891,23.32,131.82,131.79,3.7936]
[1725277332795,27.1129,131.82,131.79,3.7936]
[1725277333193,27.16818686,131.82,131.79,3.84247109]
[1725277333396,3.7931,131.81,131.79,0.04887109]
[1725277333697,23.37528686,131.82,131.79,0.04887109]
[1725277334601,0.05528686,131.82,131.81,3.7931]
[1725277338700,23.32,131.87,131.86,3.7917]
[1725277341508,23.32,131.87,131.85,0.04871091]
[1725277342502,23.32,131.87,131.85,3.84041091]
[1725277342909,0.05198068,131.88,131.85,0.04871091]
[1725277343410,0.05198068,131.88,131.87,3.7914]
[1725277352108,9.36198068,131.88,131.87,3.7914]
[1725277358913,0.05198068,131.88,131.87,3.7914]
[1725277359116,9.36198068,131.88,131.87,3.7914]
[1725277360309,0.05198068,131.88,131.87,3.7914]
[1725277372334,0.05198068,131.88,131.86,3.7915]
[1725277372633,0.05198068,131.88,131.85,0.04871091]
[1725277372934,0.05198068,131.88,131.86,3.7917]
[1725277373125,0.05198068,131.88,131.85,0.04871091]
[1725277373635,0.05198068,131.88,131.86,3.7915]
[1725277373838,0.05198068,131.88,131.85,0.04871091]
[1725277374023,0.05198068,131.88,131.86,3.7917]
[1725277376033,0.05198068,131.88,131.87,3.7914]
[1725277379536,0.05198068,131.88,131.85,0.04871091]
[1725277379739,0.05198068,131.88,131.86,3.7915]
[1725277381739,0.05198068,131.88,131.87,3.7914]
[1725277388045,0.05198068,131.88,131.85,0.04871091]
[1725277388046,9.36198068,131.88,131.85,0.04871091]
[1725277388641,9.36198068,131.88,131.86,3.7915]
[1725277388837,9.31,131.87,131.85,0.04871091]
[1725277389242,3.7917,131.86,131.85,0.04871091]
[1725277390644,3.74460313,131.86,131.73,201.61446189]
[1725277390845,9.31,131.79,131.76,95.7323306]
[1725277391143,9.31,131.8,131.76,95.7323306]
[1725277391341,9.31,131.8,131.77,3.7942]
[1725277391546,9.36666823,131.8,131.77,3.85110699]
[1725277392142,0.05666823,131.8,131.78,3.7938]
[1725277393448,0.05666823,131.8,131.79,3.7937]
[1725277396055,0.05666823,131.8,131.77,10.83270699]
[1725277396056,3.7922,131.85,131.81,3.7931]
[1725277396358,9.31,131.84,131.81,3.7931]
[1725277396953,13.1022,131.84,131.81,3.7931]
[1725277397151,9.36430141,131.84,131.81,3.85042429]
[1725277398763,9.36430141,131.84,131.82,3.7927]
[1725277398949,0.05430141,131.84,131.82,3.7927]
[1725277399356,9.31,131.83,131.81,0.05732429]
[1725277399961,9.31,131.82,131.81,0.05732429]
[1725277401055,13.1025,131.83,131.81,0.05732429]
[1725277404360,0.05430141,131.84,131.83,3.7925]
[1725277410164,9.31,131.89,131.82,12.1363]
[1725277410359,9.31,131.9,131.82,12.1363]
[1725277410958,13.1005,131.9,131.82,12.1363]
[1725277411163,0.05724166,131.87,131.85,0.05468509]
[1725277411463,0.05724166,131.87,131.85,3.83264956]
[1725277412458,0.05724166,131.87,131.86,3.7914]
[1725277415960,9.31,131.93,131.85,13.08796447]
[1725277416461,13.0998,131.93,131.89,3.7906]
[1725277416867,0.05663006,131.92,131.9,0.05335609]
[1725277417264,9.31,131.91,131.9,0.05335609]
[1725277420470,9.31,131.91,131.9,3.84385609]
[1725277423764,9.31,131.91,131.85,3.77796447]
[1725277423965,9.31,131.89,131.83,16.8946]
[1725277424270,9.31,131.89,131.88,3.7911]
[1725277424671,9.31,131.89,131.82,2.8263]
[1725277424870,0.05383497,131.87,131.85,3.7919]
[1725277425066,0.05383497,131.87,131.84,0.05491782]
[1725277425473,0.05383497,131.87,131.85,3.7919]
[1725277425770,0.05383497,131.87,131.84,0.05491782]
[1725277426273,0.05383497,131.87,131.85,3.7919]
[1725277427863,0.05383497,131.87,131.86,3.7917]
[1725277431277,3.7918,131.86,131.84,0.05491782]
[1725277431468,9.36383497,131.87,131.84,0.05491782]
[1725277431876,9.36383497,131.87,131.85,3.7919]
[1725277432779,13.15523497,131.87,131.85,3.7919]
[1725277432980,13.15523497,131.87,131.84,3.84701782]
[1725277433881,3.7917,131.86,131.84,0.05491782]
[1725277434179,9.36383497,131.87,131.84,0.05491782]
[1725277434776,13.15543497,131.87,131.84,3.84701782]
[1725277434976,9.36383497,131.87,131.84,0.05491782]
[1725277435681,9.36383497,131.87,131.85,3.7918]
[1725277435981,0.05383497,131.87,131.84,0.05491782]
[1725277436186,9.36383497,131.87,131.84,0.05491782]
[1725277436585,9.36383497,131.87,131.84,3.84701782]
[1725277436888,13.15523497,131.87,131.84,3.84701782]
[1725277437181,3.84523497,131.87,131.84,3.84701782]
[1725277439786,3.7918,131.86,131.84,0.05491782]
[1725277439986,9.31,131.86,131.84,0.05491782]
[1725277440286,13.1019,131.85,131.84,0.05491782]
[1725277440479,9.31,131.85,131.81,3.793]
[1725277440783,9.31,131.83,131.81,3.793]
[1725277440987,9.31,131.84,131.78,13.02578069]
[1725277441188,9.31,131.84,131.78,9.31]
[1725277441381,13.09706301,131.85,131.78,9.31]
[1725277441586,0.05326825,131.82,131.8,0.04904939]
[1725277442292,0.05326825,131.82,131.81,3.7931]
[1725277444786,0.05326825,131.82,131.8,3.84224939]
[1725277446495,0.05326825,131.82,131.81,3.7931]
[1725277457506,9.31,131.87,131.85,3.7919]
[1725277457816,9.31,131.87,131.81,9.31]
[1725277458205,9.31,131.87,131.85,3.7917]
[1725277458515,9.35922742,131.87,131.85,3.84582147]
[1725277458715,9.35922742,131.87,131.86,3.7917]
[1725277459405,0.04922742,131.87,131.86,3.7917]
[1725277460612,0.00183936,131.87,131.86,3.7917]
[1725277460817,0.00183936,131.87,131.86,13.1017]
[1725277461205,0.00183936,131.87,131.86,16.94449972]
[1725277464718,0.00183936,131.87,131.86,7.63449972]
[1725277466520,2.8252,131.98,131.87,7.5828]
[1725277466716,9.31,131.97,131.9,9.31]
[1725277466915,3.7886,131.97,131.9,9.31]
[1725277467118,13.0986,131.97,131.93,3.7895]
[1725277467424,13.0986,131.97,131.94,0.04924615]
[1725277467622,0.05430389,131.96,131.94,0.04924615]
[1725277469021,0.05430389,131.96,131.94,3.83854615]
[1725277472932,0.05430389,131.96,131.95,3.7891]
[1725277477229,0.05430389,131.96,131.95,13.0991]
[1725277480336,0.05430389,131.96,131.95,3.7891]
[1725277483130,0.05430389,131.96,131.95,3.7891]
[1725277486440,0.05430389,131.96,131.95,13.0991]
[1725277488142,0.05430389,131.96,131.95,3.7891]
[1725277496346,0.05430389,131.96,131.95,13.0991]
[1725277498446,0.05430389,131.96,131.95,3.7891]
[1725277498746,0.05430389,131.96,131.95,13.0991]
[1725277501649,0.05430389,131.96,131.95,3.7891]
[1725277502854,0.05430389,131.96,131.94,0.04924615]
[1725277503457,3.84320389,131.96,131.94,0.04924615]
[1725277503654,0.05430389,131.96,131.94,0.04924615]
[1725277504147,3.7891,131.95,131.94,0.04924615]
[1725277506055,0.05430389,131.96,131.94,0.04924615]
[1725277506554,0.05430389,131.96,131.95,3.7891]
[1725277507854,0.05430389,131.96,131.94,3.83844615]
[1725277508756,3.84310389,131.96,131.94,3.83844615]
[1725277509649,3.84310389,131.96,131.94,0.04924615]
[1725277510149,9.31,131.95,131.92,3.7898]
[1725277510651,9.31,131.94,131.87,152.9957]
[1725277510847,9.31,131.94,131.88,9.31]
[1725277511049,0.0509129,131.92,131.91,3.7902]
[1725277514054,0.0509129,131.92,131.9,3.84087247]
[1725277515856,0.0509129,131.92,131.91,3.7902]
[1725277518053,0.0509129,131.92,131.9,3.84077247]
[1725277518651,0.0509129,131.92,131.9,0.05047247]
[1725277519658,9.3609129,131.92,131.9,0.05047247]
[1725277520053,3.7902,131.91,131.9,0.05047247]
[1725277522056,9.3609129,131.92,131.82,1.4523]
[1725277522252,9.31,131.88,131.81,179.40751431]
[1725277522659,3.7915,131.87,131.84,3.792]
[1725277523162,3.84910335,131.87,131.84,3.84502624]
[1725277523850,15.86676304,132.0,131.86,46.55]
[1725277524053,1.4559,131.97,131.91,9.31]
[1725277524451,3.7889,131.96,131.93,3.7895]
[1725277524850,3.7889,131.96,131.93,3.84590462]
[1725277525054,3.84269783,131.96,131.93,3.84590462]
[1725277525656,3.7891,131.95,131.93,3.84590462]
[1725277525852,3.7891,131.95,131.93,0.05640462]
[1725277526054,7.59634133,131.94,131.93,0.05640462]
[1725277526366,3.7894,131.94,131.93,0.05640462]
[1725277526764,7.58762546,131.94,131.93,0.05640462]
[1725277526963,3.7894,131.94,131.93,0.05640462]
[1725277527566,7.67099467,131.94,131.93,0.05640462]
[1725277528361,7.67099467,131.94,131.91,3.7901]
[1725277529364,7.67099467,131.94,131.91,3.84242612]
[1725277531463,7.67099467,131.94,131.92,3.7899]
[1725277533167,7.67099467,131.94,131.91,0.05232612]
[1725277533469,3.7899,131.92,131.91,0.05232612]
[1725277534671,0.05337594,131.93,131.85,1.4326]
[1725277534672,23.35337594,131.93,131.85,1.4326]
[1725277534965,1.4666,131.91,131.85,3.79216251]
[1725277535159,3.7909,131.89,131.83,23.3]
[1725277535361,24.7666,131.91,131.87,3.7912]
[1725277535664,23.3,131.9,131.83,3.6986445]
[1725277535864,3.791,131.89,131.86,3.7915]
[1725277536064,3.791,131.89,131.88,0.0543591]
[1725277536267,23.3,131.88,131.81,170.09751431]
[1725277536574,3.7918,131.86,131.83,3.7924]
[1725277537268,0.05228709,131.86,131.84,3.7922]
[1725277537969,3.84398709,131.86,131.83,3.8148789]
[1725277538472,3.84398709,131.86,131.83,0.0224789]
[1725277539178,0.05228709,131.86,131.83,3.79001776]
[1725277539673,0.05228709,131.86,131.85,3.7919]
[1725277545680,0.05228709,131.86,131.84,3.7921]
[1725277546479,0.05228709,131.86,131.85,3.7919]
[1725277565906,235.49248278,132.0,131.85,46.6]
[1725277566107,9.32,131.98,131.91,9.32]
[1725277566396,9.32,131.98,131.92,3.77161248]
[1725277566791,3.82392754,131.97,131.92,3.77161248]
[1725277566995,0.05179331,131.96,131.94,0.05557916]
[1725277567302,0.05179331,131.96,131.95,3.789]
[1725277568798,0.05179331,131.96,131.94,3.84487916]
[1725277569101,0.05179331,131.96,131.94,0.05557916]
[1725277569298,5.2626,131.96,131.93,3.7894]
[1725277569499,6.7301,131.96,131.93,3.7894]
[1725277569806,2.9413,131.96,131.93,3.7894]
[1725277570406,2.98974243,131.96,131.93,3.7894]
[1725277571402,3.7891,131.95,131.93,3.7894]
[1725277574396,1.4425,132.06,131.93,23.29]
[1725277574601,1.4425,132.06,131.97,23.29]
[1725277574812,3.7867,132.04,132.01,3.7873]
[1725277574998,28.57818743,132.06,132.01,3.7873]
[1725277575201,23.29,132.04,132.01,3.7873]
[1725277575402,3.7868,132.03,132.01,0.05116497]
[1725277575696,23.34130259,132.04,132.01,0.05116497]
[1725277575901,27.12800259,132.04,132.01,3.83836497]
[1725277576106,23.34130259,132.04,132.01,3.83836497]
[1725277576308,23.34130259,132.04,132.01,0.05116497]
[1725277576909,3.7868,132.03,132.01,0.05116497]
[1725277578107,27.12800259,132.04,132.01,3.83836497]
[1725277578411,3.83800259,132.04,132.01,3.83836497]
[1725277578603,0.05130259,132.04,132.01,0.05116497]
[1725277578802,1.3788,132.14,132.03,23.29]
[1725277579108,1.3788,132.14,132.07,23.29]
[1725277579305,3.77007575,132.13,132.11,3.7844]
[1725277579815,0.05019936,132.13,132.11,0.05745139]
[1725277580705,0.05019936,132.13,132.11,3.84185139]
[1725277582499,0.05019936,132.13,132.12,3.7842]
[1725277583102,0.05019936,132.13,132.11,0.05745139]
[1725277584312,0.05019936,132.13,132.12,3.7842]
[1725277586817,0.05019936,132.13,132.11,3.84185139]
[1725277591817,3.83419936,132.13,132.11,0.05745139]
[1725277605426,3.83419936,132.13,132.11,3.84185139]
[1725277605631,3.7842,132.12,132.11,0.05745139]
[1725277607527,10.41778713,132.19,132.11,23.34745139]
[1725277607730,3.77384298,132.19,132.11,27.11303576]
[1725277608033,3.7827,132.18,132.11,27.11303576]
[1725277608431,3.7827,132.18,132.15,3.7833]
[1725277608734,3.7828,132.17,132.15,3.84038528]
[1725277610227,0.05666076,132.18,132.15,0.05708528]
[1725277610634,10.41778713,132.21,132.17,23.29]
[1725277610931,3.7701506,132.22,132.2,3.7818]
[1725277611835,3.82209877,132.22,132.2,3.83196707]
[1725277613429,7.5559,132.35,132.21,23.29]
[1725277613636,2.9096,132.31,132.23,23.29]
[1725277613944,3.7795,132.29,132.25,3.7803]
[1725277614141,2.9096,132.31,132.23,26.98430365]
[1725277614340,6.6818218,132.31,132.23,26.98430365]
[1725277614543,0.05636439,132.28,132.26,0.05593693]
[1725277614744,3.81686064,132.28,132.26,3.83603693]
[1725277615041,0.05636439,132.28,132.26,0.05593693]
[1725277615840,0.05636439,132.28,132.26,3.83593693]
[1725277618635,0.05636439,132.28,132.27,3.7799]
[1725277621043,0.05636439,132.28,132.26,0.05593693]
[1725277622552,0.05636439,132.28,132.27,3.7799]
[1725277623056,0.05636439,132.28,132.26,3.83593693]
[1725277624046,0.05636439,132.28,132.26,0.05593693]
[1725277624247,3.83616439,132.28,132.26,0.05593693]
[1725277624641,3.7799,132.27,132.26,0.05593693]
[1725277626747,3.7799,132.27,132.24,3.7807]
[1725277626943,0.05636439,132.28,132.18,88.67666968]
[1725277627158,2.9012,132.26,132.18,88.67666968]
[1725277627453,2.9012,132.26,132.18,111.96666968]
[1725277627653,3.7813,132.22,132.18,111.96666968]
[1725277628045,3.7813,132.22,132.19,3.7821]
[1725277628247,0.05182084,132.21,132.19,3.83198087]
[1725277628459,0.05182084,132.21,132.19,0.04988087]
[1725277628660,0.05182084,132.21,132.2,3.7819]
[1725277630252,0.05182084,132.21,132.19,3.83198087]
[1725277631646,3.83352084,132.21,132.19,0.04988087]
[1725277631850,0.05182084,132.21,132.19,0.04988087]
[1725277632254,0.05182084,132.21,132.19,3.83188087]
[1725277635073,0.05182084,132.21,132.2,3.7819]
[1725277635356,0.05182084,132.21,132.2,27.0719]
[1725277644162,0.05182084,132.21,132.19,0.04988087]
[1725277644865,3.84399719,132.21,132.19,0.04988087]
[1725277645068,0.05182084,132.21,132.19,0.04988087]
[1725277645466,7.57274439,132.21,132.19,0.04988087]
[1725277645668,3.83352084,132.21,132.19,0.04988087]
[1725277646166,7.68129762,132.21,132.19,0.04988087]
[1725277648464,3.89959762,132.21,132.19,3.83198087]
[1725277648767,3.89959762,132.21,132.19,0.04988087]
[1725277648971,7.68139762,132.21,132.19,0.04988087]
[1725277649573,3.7819,132.2,132.19,0.04988087]
[1725277649764,3.89959762,132.21,132.14,3.76305231]
[1725277650076,3.7824,132.19,132.16,3.7829]
[1725277650568,3.7021566,132.19,132.13,27.01295948]
[1725277650773,0.04916353,132.17,132.15,0.05790032]
[1725277651361,23.33916353,132.17,132.12,151.24]
[1725277651861,0.04916353,132.17,132.12,151.24]
[1725277652061,23.33916353,132.17,132.12,151.24]
[1725277652571,23.33916353,132.17,132.13,0.05386822]
[1725277654074,3.7836,132.14,132.13,0.05386822]
[1725277657679,3.7839,132.13,132.12,151.24]
[1725277658180,23.29,132.17,132.09,3.7849]
[1725277658572,23.29,132.15,132.09,3.7849]
[1725277658770,0.05605672,132.13,132.11,0.05076104]
[1725277658978,3.79546029,132.13,132.11,0.05076104]
[1725277659275,0.05605672,132.13,132.11,0.05076104]
[1725277659674,3.88855747,132.13,132.11,0.05076104]
[1725277660382,3.7843,132.12,132.11,0.05076104]
[1725277660675,3.88855747,132.13,132.08,3.7852]
[1725277661377,3.88855747,132.13,132.05,23.29]
[1725277661378,27.17855747,132.13,132.07,3.7856]
[1725277661574,3.785,132.1,132.07,3.7856]
[1725277661774,3.84326545,132.1,132.07,3.7856]
[1725277662175,3.7853,132.08,132.03,23.29]
[1725277662375,0.05710635,132.07,132.03,23.29]
[1725277662879,0.05710635,132.07,132.06,3.7858]
[1725277663473,0.05710635,132.07,132.03,23.29]
[1725277663781,0.05710635,132.07,132.05,23.29]
[1725277664085,0.05710635,132.07,132.06,3.7859]
[1725277669090,3.7841,132.13,132.05,23.29]
[1725277669390,7.6400027,132.13,132.08,23.29]
[1725277669594,23.29,132.16,132.09,3.77867865]
[1725277670295,3.83526547,132.13,132.11,3.7843]
[1725277670805,7.60617924,132.13,132.1,0.05304016]
[1725277670981,7.60617924,132.13,132.1,3.83764016]
[1725277671386,3.82227924,132.13,132.1,0.05304016]
[1725277671883,0.05136547,132.13,132.1,0.05304016]
[1725277672486,0.05136547,132.13,132.12,3.7842]
[1725277675499,0.05136547,132.13,132.11,3.7843]
[1725277676186,0.05136547,132.13,132.1,0.05304016]
[1725277676389,0.05136547,132.13,132.1,3.83764016]
[1725277676599,3.85917479,132.13,132.1,0.05304016]
[1725277676895,0.05136547,132.13,132.1,0.05304016]
[1725277677301,3.7845,132.11,132.1,0.05304016]
[1725277682201,0.05136547,132.13,132.1,0.05304016]
[1725277682599,0.05136547,132.13,132.12,3.7842]
[1725277685204,0.05136547,132.13,132.11,3.7843]
[1725277686407,0.05136547,132.13,132.12,3.7842]
[1725277696209,0.05136547,132.13,132.1,0.05304016]
[1725277696608,3.7845,132.11,132.1,0.05304016]
[1725277697708,3.7853,132.08,132.0,134.94186359]
[1725277697916,9.3,132.11,132.04,13.14195606]
[1725277697917,3.81016995,132.09,132.04,13.14195606]
[1725277698210,9.3,132.11,132.04,13.14195606]
[1725277698614,3.7852,132.09,132.06,3.7858]
[1725277698816,3.83458089,132.09,132.06,3.7858]
[1725277699712,3.7854,132.08,132.05,3.7861]
[1725277701615,3.7857,132.07,132.04,16.92825606]
[1725277701818,0.04938089,132.09,132.04,13.14195606]
[1725277702209,0.04938089,132.09,132.04,9.3]
[1725277702517,3.7855,132.08,132.05,3.7861]
[1725277702717,9.3,132.08,132.03,3.69359479]
[1725277702916,3.7858,132.07,132.04,3.7863]
[1725277703108,3.83357151,132.07,132.04,3.7863]
[1725277705814,3.7859,132.06,132.04,3.7863]
[1725277709516,0.04777151,132.07,132.05,9.3]
[1725277709718,0.04777151,132.07,132.06,9.3]
[1725277709920,0.04777151,132.07,132.06,13.0859]
[1725277710124,7.57405762,132.11,132.06,13.0859]
[1725277710125,4.2196,132.13,132.07,0.0480144]
[1725277710332,8.04294746,132.13,132.08,9.3]
[1725277710630,8.04294746,132.13,132.07,3.91375938]
[1725277710631,225.0,132.2,132.09,9.3]
[1725277710826,9.3,132.16,132.09,9.3]
[1725277711020,13.17937275,132.16,132.1,3.82789005]
[1725277711226,0.05262815,132.14,132.12,0.05494144]
[1725277711421,3.83642815,132.14,132.12,0.05494144]
[1725277712128,3.7839,132.13,132.12,0.05494144]
[1725277713534,13.13652815,132.14,132.12,0.05494144]
[1725277714127,3.83652815,132.14,132.12,0.05494144]
[1725277715737,3.83652815,132.14,132.12,3.83914144]
[1725277715931,0.05262815,132.14,132.12,3.83914144]
[1725277716333,0.05262815,132.14,132.12,0.05494144]
[1725277716530,3.83642815,132.14,132.12,0.05494144]
[1725277718241,0.05262815,132.14,132.12,0.05494144]
[1725277718933,9.35262815,132.14,132.12,0.05494144]
[1725277719329,3.7839,132.13,132.12,0.05494144]
[1725277721828,13.13632815,132.14,132.12,0.05494144]
[1725277722028,0.05262815,132.14,132.12,0.05494144]
[1725277722833,0.05262815,132.14,132.13,3.7839]
[1725277724332,0.05262815,132.14,132.13,13.0839]
[1725277727033,2.827,132.22,132.13,46.5]
[1725277727239,15.9085,132.22,132.16,9.3]
[1725277727731,12.127,132.22,132.19,3.782]
[1725277727937,12.18459494,132.22,132.19,3.83855971]
[1725277729841,15.96599494,132.22,132.19,3.83855971]
[1725277732542,15.96599494,132.22,132.2,3.7819]
[1725277732543,12.18459494,132.22,132.2,3.7819]
[1725277733744,15.96599494,132.22,132.19,3.83855971]
[1725277733938,12.18459494,132.22,132.19,0.05655971]
[1725277734438,3.7818,132.21,132.19,0.05655971]
[1725277735246,12.18459494,132.22,132.19,3.83875971]
[1725277735247,15.96609494,132.22,132.19,3.83875971]
[1725277736348,3.7816,132.21,132.19,0.05655971]
[1725277736640,9.3,132.21,132.09,7.21146591]
[1725277736845,2.88459494,132.22,132.13,9.3]
[1725277736846,9.3,132.19,132.13,9.3]
[1725277737047,13.0823,132.19,132.16,3.7829]
[1725277737844,13.13844866,132.19,132.16,3.83919989]
[1725277738439,9.35614866,132.19,132.17,3.7828]
[1725277739543,13.13834866,132.19,132.16,3.83919989]
[1725277741349,13.13834866,132.19,132.16,0.05629989]
[1725277741350,9.3,132.18,132.16,0.05629989]
[1725277741744,3.7828,132.17,132.16,0.05629989]
[1725277742641,3.7834,132.15,132.1,9.3]
[1725277742847,7.64215321,132.15,132.1,9.3]
[1725277743147,3.7834,132.15,132.1,9.3]
[1725277743445,7.61037836,132.15,132.12,3.7841]
[1725277743649,3.83666779,132.15,132.12,3.7841]
[1725277743844,3.7836,132.14,132.1,9.3]
[1725277744049,3.7836,132.14,132.11,3.7843]
[1725277744345,13.05692946,132.15,132.09,13.03306591]
[1725277744548,13.05692946,132.15,132.1,3.7846]
[1725277744948,3.7841,132.13,132.1,3.7846]
[1725277747737,3.7841,132.13,132.09,9.3]
[1725277747738,9.3,132.14,132.03,7.5731]
[1725277747947,0.04837245,132.1,132.03,11.30077745]
[1725277748140,0.04837245,132.1,132.06,9.3]
[1725277749055,0.04837245,132.1,132.08,3.7852]
[1725277749552,0.04837245,132.1,132.06,9.3]
[1725277749749,0.04837245,132.1,132.08,9.3]
[1725277750347,0.04837245,132.1,132.09,3.7851]
[1725277751755,0.04837245,132.1,132.09,13.0851]
[1725277752450,3.7835,132.15,132.12,3.784]
[1725277753348,3.83775814,132.15,132.12,3.83337146]
[1725277755360,3.83775814,132.15,132.13,3.7839]
[1725277756054,3.83775814,132.15,132.12,3.83347146]
[1725277756254,225.0,132.23,132.14,9.3]
[1725277756459,9.3,132.22,132.16,9.3]
[1725277756657,9.3,132.22,132.18,3.7823]
[1725277756859,3.7816,132.21,132.18,3.7823]
[1725277757251,7.6498392,132.21,132.18,3.83596008]
[1725277760660,3.7819,132.2,132.18,0.05366008]
[1725277768971,9.3,132.19,132.07,154.1347]
[1725277769171,9.3,132.16,132.1,9.3]
[1725277769967,0.05125587,132.14,132.12,3.83259831]
[1725277770675,3.83485587,132.14,132.12,3.83259831]
[1725277771374,0.05125587,132.14,132.12,3.83259831]
[1725277772678,0.05125587,132.14,132.13,3.7839]
[1725277776971,0.05125587,132.14,132.12,9.34849831]
[1725277776972,0.05125587,132.14,132.12,0.04849831]
[1725277777474,3.83505587,132.14,132.12,0.04849831]
[1725277778980,3.7839,132.13,132.12,0.04849831]
[1725277780782,0.05125587,132.14,132.12,0.04849831]
[1725277780977,0.05125587,132.14,132.12,3.83259831]
[1725277782079,0.05125587,132.14,132.12,0.04849831]
[1725277782576,0.05125587,132.14,132.12,3.83249831]
[1725277782786,0.05125587,132.14,132.12,0.04849831]
[1725277783374,0.05125587,132.14,132.13,3.7839]
[1725277787380,0.05125587,132.14,132.13,13.0839]
[1725277790489,0.05125587,132.14,132.13,3.7839]
[1725277797191,0.05125587,132.14,132.13,13.0839]
[1725277797387,1.3733,132.24,132.19,3.7821]
[1725277797692,10.685,132.24,132.17,9.3]
[1725277797898,3.7815,132.22,132.19,3.7819]
[1725277798594,3.7815,132.22,132.19,3.83479147]
[1725277798797,3.7816,132.21,132.19,3.83479147]
[1725277798988,0.05301993,132.22,132.19,0.05289147]
[1725277799189,9.3,132.21,132.19,0.05289147]
[1725277799397,13.0819,132.21,132.19,0.05289147]
[1725277799696,13.0819,132.21,132.19,3.83499147]
[1725277800889,9.3,132.21,132.19,3.83499147]
[1725277801695,0.05301993,132.22,132.2,3.7819]
[1725277801892,9.35301993,132.22,132.2,3.7819]
[1725277802391,13.20665079,132.22,132.2,3.7819]
[1725277802797,16.98795079,132.22,132.19,3.83499147]
[1725277803002,9.3,132.21,132.19,3.83499147]
[1725277803394,9.3,132.2,132.19,0.05289147]
[1725277803699,9.3,132.2,132.14,3.75160729]
[1725277803906,13.0821,132.2,132.17,3.7827]
[1725277804294,13.0821,132.2,132.14,3.75160729]
[1725277804497,0.04976989,132.18,132.16,0.04833392]
[1725277805197,0.04976989,132.18,132.17,3.7828]
[1725277807701,0.04976989,132.18,132.17,13.0828]
[1725277807898,3.7813,132.23,132.17,9.3]
[1725277808090,1.385,132.24,132.18,9.3]
[1725277808289,14.47357791,132.24,132.19,3.85098335]
[1725277808498,14.4659,132.24,132.22,3.7812]
[1725277808691,10.685,132.24,132.18,9.3]
[1725277808896,0.05704446,132.22,132.2,0.04805897]
[1725277810308,0.05704446,132.22,132.2,3.82965897]